bitfinex-derivatives/quotes_SOLF0:USTF0_20251222
["timestamp","ask_amount","ask_price","bid_price","bid_amount"]
[1766434366627,6.23,125.03,124.96,114.58623543]
[1766434366822,6.23,125.06,124.96,112.0781]
[1766434367035,6.23,125.06,124.97,2.45482089]
[1766434367320,6.23,125.06,124.98,94.52]
[1766434367531,0.05373127,125.03,125.01,0.06151034]
[1766434369040,6.28373127,125.03,124.98,94.52]
[1766434370137,6.28373127,125.03,124.99,0.05817939]
[1766434371037,6.23,125.0,124.93,94.52]
[1766434371929,0.05236084,124.98,124.95,0.05796665]
[1766434372234,6.28236084,124.98,124.91,94.5]
[1766434372634,6.28236084,124.98,124.91,101.7076]
[1766434373236,6.28236084,124.98,124.93,0.05676445]
[1766434377131,6.23,124.96,124.9,94.52]
[1766434377733,6.23,124.96,124.9,101.7286]
[1766434378341,0.05951023,124.94,124.92,0.05893806]
[1766434379638,6.28951023,124.94,124.9,101.7286]
[1766434379842,0.05951023,124.94,124.9,101.7286]
[1766434380344,0.05951023,124.94,124.9,94.52]
[1766434380535,0.05951023,124.94,124.91,0.05284756]
[1766434381639,0.05951023,124.94,124.92,7.2073]
[1766434383336,0.05951023,124.94,124.91,0.05284756]
[1766434384442,115.8658083,125.03,124.92,3.14]
[1766434384640,3.8441083,125.03,124.92,3.14]
[1766434385250,7.2028,125.0,124.92,10.347]
[1766434385436,0.06061431,124.97,124.95,0.0505592]
[1766434397160,0.06061431,124.97,124.95,7.2561592]
[1766434397949,81.3412,125.03,124.96,3.09]
[1766434398261,6.2,125.04,124.99,7.2028]
[1766434398458,6.2,125.04,124.98,3.03]
[1766434399166,0.05045271,125.02,125.0,0.05861671]
[1766434407367,6.2,125.04,125.0,94.55861671]
[1766434408157,0.06064484,125.03,125.0,94.55861671]
[1766434408558,0.06064484,125.03,125.0,97.54861671]
[1766434409567,0.06064484,125.03,125.0,104.75141671]
[1766434412369,0.06064484,125.03,125.0,97.54861671]
[1766434413066,0.06064484,125.03,125.0,94.55861671]
[1766434413261,0.06064484,125.03,125.0,0.05861671]
[1766434413966,5.82,125.02,124.99,93.34456326]
[1766434414161,5.82,125.02,124.96,2.97]
[1766434414562,5.82,125.02,124.96,97.47]
[1766434414964,0.05451275,125.0,124.98,0.05539705]
[1766434418273,0.00451275,125.0,124.98,0.05539705]
[1766434425490,6.2,125.05,124.99,5.94]
[1766434426373,0.05239698,125.03,125.01,0.05227127]
[1766434430280,6.25239698,125.03,125.01,0.00227127]
[1766434430480,13.45349698,125.03,124.97,5.94]
[1766434431385,13.45349698,125.03,124.99,0.05173814]
[1766434435681,13.4017,125.02,124.99,0.05173814]
[1766434437977,6.2,125.02,124.99,0.05173814]
[1766434438281,7.25349698,125.03,124.99,0.05173814]
[1766434438476,13.45349698,125.03,124.99,0.05173814]
[1766434439788,6.25239698,125.03,124.99,0.05173814]
[1766434446484,6.25239698,125.03,124.99,7.25503814]
[1766434447998,6.25239698,125.03,124.99,0.05173814]
[1766434450995,0.05239698,125.03,124.99,6.10173814]
[1766434454701,0.05239698,125.03,124.99,13.30513814]
[1766434455001,0.05239698,125.03,124.99,6.10173814]
[1766434456505,0.05239698,125.03,124.99,13.30503814]
[1766434457300,0.05239698,125.03,124.99,6.10173814]
[1766434459513,7.25359698,125.03,124.99,6.10173814]
[1766434460104,0.05239698,125.03,124.99,6.10173814]
[1766434469028,0.00239698,125.03,124.99,6.10173814]
[1766434483735,7.20389698,125.03,124.99,6.10173814]
[1766434483934,6.13239698,125.03,124.99,0.05173814]
[1766434484239,8.58840996,125.02,124.99,0.05173814]
[1766434485536,15.79030996,125.02,124.99,0.05173814]
[1766434485738,9.66030996,125.02,124.99,0.05173814]
[1766434486331,7.2019,125.02,124.99,0.05173814]
[1766434486537,2.46080694,125.03,124.99,0.05173814]
[1766434486737,0.00239698,125.03,124.99,0.05173814]
[1766434487637,7.20349698,125.03,124.99,0.05173814]
[1766434488336,13.33349698,125.03,124.99,0.05173814]
[1766434494445,2.45840996,125.02,124.99,0.05173814]
[1766434496051,13.33349698,125.03,124.99,0.05173814]
[1766434496346,6.13,125.01,124.95,6.11]
[1766434496547,6.13,125.0,124.95,6.11]
[1766434496851,6.13,124.99,124.93,16.06108372]
[1766434497035,6.13,124.99,124.92,7.2069]
[1766434497036,6.13,124.98,124.92,94.5]
[1766434497242,0.05169889,124.96,124.94,0.05587566]
[1766434497442,0.05169889,124.96,124.92,94.5]
[1766434498550,0.05169889,124.96,124.93,0.05798348]
[1766434499951,13.38699889,124.96,124.93,0.05798348]
[1766434501154,7.2059,124.95,124.93,0.05798348]
[1766434501351,6.13,124.94,124.89,94.5]
[1766434501557,6.13,124.92,124.87,6.11]
[1766434502357,0.05491999,124.91,124.88,0.05247776]
[1766434506057,6.17491999,124.91,124.88,0.05247776]
[1766434506349,6.17491999,124.91,124.88,0.00247776]
[1766434507560,7.2087,124.9,124.88,0.00247776]
[1766434508252,6.17491999,124.91,124.88,0.00247776]
[1766434509651,0.05491999,124.91,124.88,0.00247776]
[1766434512062,0.05491999,124.91,124.88,5.64247776]
[1766434518454,0.05491999,124.91,124.88,0.00247776]
[1766434518661,6.17491999,124.91,124.88,0.00247776]
[1766434519567,7.2086,124.9,124.88,0.00247776]
[1766434521567,7.2092,124.89,124.88,0.00247776]
[1766434523373,13.38351999,124.91,124.88,0.00247776]
[1766434523876,6.12,124.9,124.88,0.00247776]
[1766434524062,13.3286,124.9,124.88,0.00247776]
[1766434528375,6.12,124.9,124.88,0.00247776]
[1766434528774,7.26291999,124.91,124.88,0.00247776]
[1766434528775,0.05491999,124.91,124.88,0.00247776]
[1766434532870,6.12,124.95,124.89,5.64]
[1766434533269,206.6326,125.0,124.89,5.64]
[1766434533270,6.12,124.97,124.89,5.64]
[1766434533778,6.12,124.97,124.9,5.64]
[1766434533979,0.05765964,124.95,124.92,0.06095961]
[1766434535970,5.61,124.99,124.92,5.85095961]
[1766434536174,5.61,124.99,124.92,5.79]
[1766434537080,0.05573009,124.97,124.94,0.05271994]
[1766434537677,0.05573009,124.97,124.94,5.84271994]
[1766434540283,107.3929,125.0,124.94,5.84271994]
[1766434540785,5.61,124.99,124.94,0.05271994]
[1766434541171,0.05640468,124.98,124.94,0.05271994]
[1766434541782,0.05640468,124.98,124.94,5.84271994]
[1766434542277,0.05640468,124.98,124.94,0.05271994]
[1766434542875,5.66640468,124.98,124.94,0.05271994]
[1766434545885,0.05640468,124.98,124.94,5.84271994]
[1766434547084,5.66640468,124.98,124.94,0.05271994]
[1766434548079,5.61,124.96,124.94,0.00271994]
[1766434548285,5.61,124.96,124.9,100.33]
[1766434548483,5.61,124.96,124.9,107.5385]
[1766434548684,5.61,124.96,124.91,5.79]
[1766434548885,3.84153813,124.97,124.91,5.79]
[1766434549085,5.61,124.98,124.91,5.79]
[1766434549290,5.61,124.98,124.93,0.05768147]
[1766434549291,0.05286508,124.96,124.93,0.05768147]
[1766434555698,12.86806508,124.96,124.93,0.05768147]
[1766434555994,15.32942249,124.96,124.93,0.05768147]
[1766434556495,5.61,124.95,124.9,94.54]
[1766434557199,5.61,124.93,124.87,5.79]
[1766434557394,2.46135741,124.94,124.83,5.79]
[1766434557395,2.46135741,124.9,124.83,5.79]
[1766434557589,7.2092,124.89,124.84,5.79]
[1766434557789,8.07135741,124.9,124.85,0.05943822]
[1766434557790,0.05075707,124.88,124.85,0.05943822]
[1766434558403,2.51211448,124.88,124.85,0.05943822]
[1766434558593,2.46135741,124.86,124.8,5.79]
[1766434559494,0.05701252,124.84,124.82,0.05082512]
[1766434559689,2.46135741,124.86,124.82,0.05082512]
[1766434560290,15.28095741,124.89,124.82,5.84082512]
[1766434560685,0.05787417,124.87,124.82,5.84082512]
[1766434560895,2.51923158,124.87,124.82,5.84082512]
[1766434561092,0.05787417,124.87,124.82,5.84082512]
[1766434565103,0.05787417,124.87,124.82,13.05372512]
[1766434565299,0.05787417,124.87,124.83,5.79]
[1766434567303,0.05787417,124.87,124.82,7.26372512]
[1766434567304,5.64,124.91,124.84,5.94]
[1766434567505,2.46135741,124.9,124.84,5.94]
[1766434568203,5.64,124.91,124.84,5.94]
[1766434568402,0.05376153,124.89,124.86,0.05806114]
[1766434573200,0.05376153,124.89,124.85,5.94]
[1766434573201,5.69376153,124.89,124.83,5.94]
[1766434573502,5.64,124.88,124.81,13.1533]
[1766434573706,5.64,124.88,124.82,5.94]
[1766434574410,0.05470899,124.86,124.84,0.05588776]
[1766434575508,0.05470899,124.86,124.72,112.2922]
[1766434575708,8.10135741,124.83,124.73,115.13437662]
[1766434575907,8.10135741,124.81,124.71,2.46135741]
[1766434576111,5.64,124.78,124.69,112.317]
[1766434576309,5.64,124.78,124.68,114.78595741]
[1766434576310,5.64,124.78,124.68,112.3246]
[1766434576499,0.05307613,124.74,124.72,0.05702378]
[1766434576703,0.00307613,124.74,124.72,0.05702378]
[1766434576904,5.64,124.78,124.72,0.05702378]
[1766434577202,12.8557,124.78,124.72,0.05702378]
[1766434577397,8.10135741,124.77,124.72,0.05702378]
[1766434577708,5.64,124.75,124.68,3.23]
[1766434578605,0.05409774,124.73,124.7,0.05392129]
[1766434579101,5.64,124.8,124.71,3.18]
[1766434579897,5.64,124.8,124.73,3.19]
[1766434580101,0.05259483,124.77,124.74,0.05541199]
[1766434580713,0.00259483,124.77,124.74,0.05541199]
[1766434583413,0.00259483,124.77,124.74,7.27311199]
[1766434589021,0.00259483,124.77,124.74,9.94311199]
[1766434590418,5.59259483,124.77,124.74,0.05541199]
[1766434591622,5.59259483,124.77,124.72,94.62]
[1766434591812,2.46135741,124.76,124.69,2.51]
[1766434592017,5.59,124.75,124.69,2.51]
[1766434592212,5.59,124.75,124.66,117.67864036]
[1766434592412,5.59,124.75,124.67,94.66]
[1766434592618,0.05726298,124.72,124.7,0.0550504]
[1766434593321,0.05726298,124.72,124.67,101.8815]
[1766434594229,0.05726298,124.72,124.68,0.06012115]
[1766434600026,24.02,124.8,124.69,5.51]
[1766434600329,2.46135741,124.78,124.69,5.51]
[1766434600528,2.46135741,124.78,124.69,12.7302]
[1766434600830,2.46135741,124.78,124.67,209.46015741]
[1766434600831,2.46135741,124.75,124.67,5.51]
[1766434601022,0.05571114,124.72,124.7,0.0612469]
[1766434602828,5.57571114,124.72,124.7,0.0012469]
[1766434603028,5.57571114,124.72,124.65,5.51]
[1766434603230,5.57571114,124.72,124.67,7.2218]
[1766434603631,5.57571114,124.72,124.65,5.51]
[1766434603936,5.57571114,124.72,124.67,0.05649758]
[1766434604125,5.57571114,124.72,124.62,0.00161513]
[1766434604126,5.52,124.67,124.62,0.00161513]
[1766434604325,2.46135741,124.68,124.58,5.51]
[1766434604326,5.52,124.64,124.58,5.51]
[1766434604526,5.52,124.64,124.58,12.737]
[1766434604733,5.52,124.64,124.58,5.51]
[1766434605040,5.52,124.67,124.58,5.51]
[1766434605246,5.52,124.67,124.56,2.46135741]
[1766434605247,5.52,124.69,124.63,5.51]
[1766434605537,0.05176656,124.67,124.65,0.05664862]
[1766434608028,0.05176656,124.67,124.61,5.51]
[1766434608229,12.7416,124.68,124.61,5.51]
[1766434608437,5.52,124.68,124.61,5.51]
[1766434608628,5.52,124.68,124.59,100.21]
[1766434608938,7.2239,124.64,124.59,5.51]
[1766434609834,0.06155908,124.65,124.59,5.51]
[1766434610738,7.28465908,124.65,124.59,5.51]
[1766434610946,0.06155908,124.65,124.59,5.51]
[1766434611236,7.2237,124.64,124.59,5.51]
[1766434611944,0.06155908,124.65,124.59,5.51]
[1766434612436,7.28485908,124.65,124.59,5.51]
[1766434612745,0.06155908,124.65,124.59,5.51]
[1766434612939,5.52,124.64,124.57,100.25]
[1766434613132,0.06048798,124.62,124.57,100.25]
[1766434613638,0.06048798,124.62,124.57,5.51]
[1766434614231,5.52,124.61,124.49,118.0061]
[1766434614436,5.52,124.61,124.49,5.51]
[1766434614437,0.05405093,124.56,124.49,5.51]
[1766434614642,0.05405093,124.56,124.5,100.25]
[1766434614839,5.52,124.59,124.51,5.51]
[1766434615036,0.00166423,124.54,124.51,5.51]
[1766434615232,12.7463,124.6,124.51,5.51]
[1766434615642,7.2267,124.59,124.51,5.51]
[1766434616246,0.00313331,124.56,124.54,5.56166423]
[1766434616451,12.7457,124.61,124.54,5.56166423]
[1766434616643,5.52,124.61,124.54,5.56166423]
[1766434617245,0.05950499,124.59,124.54,5.56166423]
[1766434618148,0.05950499,124.59,124.54,0.05166423]
[1766434618343,0.05950499,124.59,124.54,5.56166423]
[1766434619151,5.57950499,124.59,124.54,0.05166423]
[1766434619545,0.05950499,124.59,124.54,0.05166423]
[1766434620150,0.05950499,124.59,124.54,5.56166423]
[1766434620354,10.77495186,124.64,124.55,5.51]
[1766434620355,5.52,124.64,124.55,5.51]
[1766434621042,5.52,124.61,124.52,100.29]
[1766434621343,0.06014444,124.58,124.55,0.05141193]
[1766434622851,0.00014444,124.58,124.55,5.56141193]
[1766434623352,0.00014444,124.58,124.55,0.05141193]
[1766434625151,0.00014444,124.58,124.55,5.56141193]
[1766434625351,5.52,124.63,124.55,5.56141193]
[1766434625553,5.52,124.63,124.55,5.51]
[1766434625854,5.52,124.63,124.56,13.6181]
[1766434626259,0.05819777,124.61,124.58,0.06104654]
[1766434626948,6.17,124.66,124.58,6.45104654]
[1766434627148,6.17,124.66,124.58,6.39]
[1766434627354,6.17,124.66,124.58,13.6168]
[1766434627552,6.17,124.66,124.59,6.39]
[1766434627752,7.2225,124.67,124.59,6.39]
[1766434627944,0.06065184,124.64,124.62,0.05448102]
[1766434628456,0.06065184,124.64,124.57,101.19]
[1766434628656,0.06065184,124.64,124.58,6.39]
[1766434629456,0.06065184,124.64,124.6,0.05893024]
[1766434629757,0.06065184,124.64,124.53,6.39]
[1766434629758,3.86600037,124.61,124.53,6.39]
[1766434629951,10.03600037,124.61,124.53,101.19]
[1766434630152,6.17,124.61,124.54,6.39]
[1766434630658,0.05235119,124.59,124.56,0.05275877]
[1766434637465,6.17,124.57,124.48,6.39]
[1766434637855,6.17,124.57,124.48,13.6224]
[1766434638363,0.05198597,124.54,124.51,0.05074336]
[1766434639052,104.17,124.53,124.51,0.00074336]
[1766434639255,0.05198597,124.54,124.39,112.5867]
[1766434639256,6.17,124.48,124.39,6.39]
[1766434639455,6.17,124.45,124.34,6.39]
[1766434639658,6.17,124.39,124.3,4.5471555]
[1766434639970,6.17,124.39,124.31,6.39]
[1766434640164,0.06050475,124.36,124.34,0.05658212]
[1766434640462,0.00050475,124.36,124.34,0.05658212]
[1766434640672,100.99,124.42,124.34,6.44658212]
[1766434640959,100.99,124.42,124.31,112.6641]
[1766434640960,6.17,124.41,124.33,112.6466]
[1766434641163,6.17,124.44,124.36,6.39]
[1766434641362,6.17,124.44,124.36,13.6294]
[1766434641669,0.0537099,124.41,124.39,0.05893133]
[1766434642159,0.0537099,124.41,124.36,6.39]
[1766434642363,0.0537099,124.41,124.32,6.39]
[1766434642561,6.17,124.42,124.33,6.39]
[1766434642954,6.17,124.4,124.3,105.7771555]
[1766434643159,6.17,124.4,124.3,4.5471555]
[1766434643160,6.17,124.36,124.3,4.5471555]
[1766434643357,6.17,124.36,124.25,6.39]
[1766434643358,10.77601849,124.34,124.25,6.39]
[1766434643560,24.02,124.37,124.26,6.39]
[1766434643863,24.02,124.4,124.31,6.39]
[1766434644052,112.5642,124.43,124.31,6.39]
[1766434644053,7.236,124.43,124.32,6.39]
[1766434644258,0.0553618,124.39,124.34,6.39]
[1766434644552,2.07167919,124.46,124.36,6.39]
[1766434644752,123.28241849,124.49,124.38,6.39]
[1766434644972,112.4978,124.5,124.38,6.39]
[1766434645456,119.746,124.48,124.38,6.39]
[1766434645652,0.05900795,124.44,124.42,0.05514877]
[1766434646257,10.77601849,124.54,124.44,6.39]
[1766434646470,123.21191849,124.57,124.45,6.39]
[1766434646662,119.6812,124.55,124.45,6.39]
[1766434646960,123.23811849,124.54,124.45,6.39]
[1766434647171,123.23811849,124.54,124.38,126.2233]
[1766434647172,130.55425562,124.51,124.38,126.2233]
[1766434647472,112.4979,124.5,124.39,6.39]
[1766434647669,112.4826,124.52,124.4,6.39]
[1766434647862,10.77601849,124.51,124.4,6.39]
[1766434648059,123.26401849,124.51,124.4,6.39]
[1766434648368,0.05187448,124.47,124.44,0.05216896]
[1766434650454,0.05187448,124.47,124.4,6.39]
[1766434652664,112.5416,124.45,124.36,3.51]
[1766434652867,0.05114414,124.42,124.36,3.51]
[1766434653078,0.05114414,124.42,124.29,112.6782]
[1766434653079,123.39686263,124.42,124.33,3.51]
[1766434653267,0.05467987,124.39,124.33,3.51]
[1766434653568,0.05467987,124.39,124.27,112.6981]
[1766434653569,112.6125,124.37,124.27,3.51]
[1766434653769,0.05992049,124.33,124.27,3.51]
[1766434654565,18.01371849,124.4,124.27,3.51]
[1766434654759,102.1577,124.4,124.29,3.51]
[1766434655376,214.7436,124.4,124.29,3.51]
[1766434655574,214.7436,124.4,124.33,0.05642069]
[1766434655575,0.05862769,124.36,124.33,0.05642069]
[1766434656473,112.68372769,124.36,124.29,3.51]
[1766434656669,112.6316,124.35,124.26,98.33]
[1766434656877,112.6505,124.33,124.26,98.33]
[1766434657077,7.2426,124.32,124.26,3.43]
[1766434657275,112.6396,124.34,124.26,3.43]
[1766434657482,0.05941104,124.31,124.26,3.43]
[1766434658078,112.72681104,124.31,124.23,94.94]
[1766434658278,0.05104989,124.28,124.19,94.94]
[1766434658577,0.00425395,124.25,124.19,94.94]
[1766434658777,0.00425395,124.25,124.17,112.7891]
[1766434658977,112.7238,124.25,124.13,2.88760267]
[1766434659179,94.94,124.24,124.13,94.94]
[1766434659379,112.7238,124.25,124.13,94.94]
[1766434659380,102.1863,124.25,124.13,215.0218]
[1766434659582,0.05126384,124.2,124.18,0.0561808]
[1766434659778,112.7028,124.28,124.18,0.0561808]
[1766434659779,123.46091849,124.29,124.18,0.0561808]
[1766434660079,112.6947,124.28,124.15,3.43]
[1766434660279,112.6806,124.3,124.15,3.43]
[1766434660280,10.77601849,124.26,124.15,3.43]
[1766434660478,94.96,124.25,124.16,3.43]
[1766434660780,112.6845,124.3,124.2,3.43]
[1766434660781,0.00348205,124.22,124.2,3.43]
[1766434660984,130.69701849,124.3,124.2,3.43]
[1766434661180,112.6947,124.28,124.2,3.43]
[1766434661772,119.9396,124.28,124.2,3.43]
[1766434661969,0.05651218,124.25,124.23,0.00170092]
[1766434662575,112.6849,124.29,124.23,0.00170092]
[1766434662576,94.98,124.29,124.23,0.00170092]
[1766434662975,7.2458,124.26,124.16,3.43]
[1766434663476,112.6783,124.3,124.17,116.2194]
[1766434663679,112.6719,124.31,124.19,3.43]
[1766434663985,207.6642,124.32,124.24,0.05987243]
[1766434664181,112.6673,124.31,124.21,3.43]
[1766434664382,112.6762,124.3,124.21,3.43]
[1766434664581,7.2445,124.29,124.21,3.43]
[1766434664880,112.6883,124.29,124.21,3.43]
[1766434665084,120.01925621,124.26,124.24,0.00043797]
[1766434665278,0.06005621,124.26,124.19,3.43]
[1766434665479,207.6872,124.29,124.19,3.43]
[1766434666079,112.7148,124.26,124.16,3.43]
[1766434666383,0.05746129,124.22,124.2,0.06049396]
[1766434667184,7.2467,124.25,124.2,0.06049396]
[1766434667385,112.7063,124.27,124.2,0.06049396]
[1766434667588,95.02,124.27,124.2,0.06049396]
[1766434667782,112.6729,124.31,124.2,3.49049396]
[1766434667783,95.02,124.29,124.2,3.49049396]
[1766434668089,95.02,124.29,124.2,3.43]
[1766434668289,0.0578339,124.26,124.23,0.05745327]
[1766434668490,0.0578339,124.26,124.2,3.43]
[1766434668692,7.3039339,124.26,124.2,3.43]
[1766434669379,207.6894,124.31,124.2,3.43]
[1766434669587,207.7043,124.32,124.2,3.43]
[1766434669988,7.2425,124.32,124.21,3.43]
[1766434670492,0.0015714,124.28,124.25,3.48578791]
[1766434670680,95.04,124.36,124.25,3.48578791]
[1766434670887,112.61,124.38,124.26,3.43]
[1766434671081,95.04,124.38,124.27,3.43]
[1766434671486,207.6436,124.38,124.28,3.43]
[1766434671888,112.5905,124.4,124.32,0.06169521]
[1766434672088,112.5905,124.4,124.28,10.6741]
[1766434672089,207.6349,124.39,124.29,3.43]
[1766434672284,95.04,124.39,124.29,3.43]
[1766434672499,207.6152,124.42,124.29,3.43]
[1766434672699,7.2376,124.41,124.32,3.43]
[1766434672897,0.05590614,124.38,124.35,0.05495256]
[1766434673299,7.2361,124.43,124.35,3.48495256]
[1766434673495,7.2361,124.43,124.35,3.43]
[1766434674293,0.0570885,124.4,124.38,0.05826491]
[1766434674493,209.58144155,124.45,124.38,0.05826491]
[1766434674897,7.2361,124.43,124.38,0.05826491]
[1766434675091,112.5589,124.43,124.38,0.05826491]
[1766434675491,0.05731278,124.42,124.38,0.05826491]
[1766434675803,112.5995,124.39,124.32,3.43]
[1766434675999,112.6039,124.38,124.29,98.45]
[1766434676202,112.5872,124.4,124.3,3.43]
[1766434676402,7.2385,124.39,124.3,3.43]
[1766434676700,0.05362878,124.36,124.33,0.05472267]
[1766434676902,0.00362878,124.36,124.33,0.05472267]
[1766434678797,0.00362878,124.36,124.33,3.48472267]
[1766434680598,7.24392878,124.36,124.26,6.65306992]
[1766434680798,112.6314,124.35,124.24,7.2465]
[1766434680999,112.6314,124.35,124.24,102.2465]
[1766434681700,0.0584151,124.31,124.28,0.05164373]
[1766434681907,7.2419,124.33,124.28,0.05164373]
[1766434683000,0.05230671,124.32,124.28,0.05164373]
[1766434683499,7.2408,124.35,124.28,3.48164373]
[1766434683705,207.5944,124.39,124.28,3.48164373]
[1766434683905,207.5944,124.39,124.28,3.43]
[1766434684498,7.2401,124.36,124.28,3.43]
[1766434684806,0.0598686,124.34,124.32,0.05764209]
[1766434685300,7.2401,124.36,124.32,0.05764209]
[1766434685706,112.6316,124.35,124.32,0.05764209]
[1766434686011,112.6276,124.36,124.32,0.05764209]
[1766434686308,0.05350179,124.35,124.32,0.05764209]
[1766434686996,0.00350179,124.35,124.32,0.05764209]
[1766434687401,0.00350179,124.35,124.32,3.43764209]
[1766434687601,207.5881,124.4,124.32,3.43764209]
[1766434687804,207.5881,124.4,124.32,3.38]
[1766434688205,95.0,124.4,124.32,3.38]
[1766434688601,0.00129371,124.37,124.35,0.05897632]
[1766434688910,114.55684155,124.45,124.35,3.43897632]
[1766434689103,209.55684155,124.45,124.35,3.38]
[1766434689707,112.4945,124.51,124.35,3.38]
[1766434689897,112.4945,124.51,124.37,3.38]
[1766434689898,112.5045,124.49,124.37,3.38]
[1766434690101,0.05559842,124.44,124.42,0.05374265]
[1766434690298,0.0610873,124.44,124.42,0.05374265]
[1766434690505,0.0610873,124.44,124.35,98.38]
[1766434690707,207.5335,124.46,124.36,3.38]
[1766434690996,7.2355,124.44,124.36,3.38]
[1766434691410,0.05926763,124.41,124.39,0.0554631]
[1766434691611,102.2345,124.46,124.39,0.0554631]
[1766434691811,95.0,124.46,124.39,0.0554631]
[1766434692213,112.5411,124.45,124.39,0.0554631]
[1766434692602,0.05220142,124.43,124.39,0.0554631]
[1766434693502,101.63306992,124.5,124.39,3.4354631]
[1766434693700,101.63306992,124.5,124.39,3.38]
[1766434693906,112.504,124.49,124.4,3.38]
[1766434694106,6.65306992,124.47,124.4,3.38]
[1766434694603,0.05638073,124.45,124.42,0.05912403]
[1766434695601,6.65306992,124.48,124.42,0.05912403]
[1766434696514,0.02875006,124.46,124.42,0.05912403]
[1766434696820,231.4761,124.53,124.42,0.05912403]
[1766434696821,13.88506992,124.5,124.42,3.43912403]
[1766434697006,6.65306992,124.5,124.42,3.38]
[1766434697207,112.4772,124.52,124.42,3.38]
[1766434697408,6.65306992,124.5,124.42,3.38]
[1766434698010,6.65306992,124.5,124.45,0.0520114]
[1766434698507,6.65306992,124.51,124.45,0.0520114]
[1766434698708,0.05916338,124.49,124.43,3.38]
[1766434698908,6.65306992,124.51,124.43,3.38]
[1766434699416,7.2325,124.49,124.41,94.96]
[1766434699612,0.0568624,124.46,124.44,0.05763098]
[1766434699819,6.65306992,124.48,124.4,3.38]
[1766434700014,6.65306992,124.48,124.41,10.6168]
[1766434700213,6.65306992,124.48,124.41,3.38]
[1766434701027,0.05234923,124.46,124.43,0.05457538]
[1766434702923,0.05234923,124.46,124.38,3.38]
[1766434702924,6.65306992,124.45,124.38,3.38]
[1766434703315,7.2353,124.44,124.38,3.38]
[1766434703515,6.65306992,124.45,124.38,3.38]
[1766434703922,0.05080721,124.43,124.4,0.0578611]
[1766434704626,0.05080721,124.43,124.36,94.94]
[1766434704822,0.05080721,124.43,124.37,3.38]
[1766434705218,0.05080721,124.43,124.38,3.38]
[1766434705428,6.65306992,124.48,124.38,3.38]
[1766434706317,6.65306992,124.48,124.39,3.38]
[1766434706524,0.0515286,124.44,124.41,0.05504876]
[1766434707332,0.0015286,124.44,124.41,0.05504876]
[1766434708635,6.65306992,124.48,124.41,10.67194876]
[1766434709229,13.88476992,124.51,124.43,3.38]
[1766434709429,6.65306992,124.51,124.43,3.38]
[1766434709728,0.00119893,124.48,124.46,0.05696338]
[1766434709929,6.65306992,124.54,124.46,3.27]
[1766434710130,112.3924,124.62,124.49,3.27]
[1766434710442,6.65306992,124.63,124.53,3.27]
[1766434710919,0.05807771,124.59,124.57,0.05219195]
[1766434711119,0.05807771,124.59,124.53,3.27]
[1766434711424,94.94,124.66,124.53,3.27]
[1766434711425,112.3344,124.68,124.56,3.27]
[1766434711629,119.00766992,124.66,124.56,3.27]
[1766434711830,119.00766992,124.66,124.53,98.19]
[1766434711831,6.65306992,124.63,124.53,98.19]
[1766434712127,6.65306992,124.63,124.53,105.4197]
[1766434712336,6.65306992,124.63,124.55,3.27]
[1766434712529,0.05643112,124.59,124.57,0.05132156]
[1766434712729,6.65306992,124.66,124.57,0.05132156]
[1766434713031,6.65306992,124.66,124.57,3.27]
[1766434713329,207.2455,124.69,124.54,112.455]
[1766434713330,6.65306992,124.63,124.54,98.19]
[1766434713831,6.65306992,124.63,124.57,0.05701934]
[1766434714226,6.65306992,124.6,124.51,3.27]
[1766434714724,119.05866992,124.6,124.51,3.27]
[1766434714929,7.2268,124.59,124.51,3.27]
[1766434715124,7.2268,124.59,124.48,7.2326]
[1766434715125,6.65306992,124.57,124.54,0.05671924]